Cogmind - Beta 17 @@@ ROGUE MODE // 2026.07.22 @ 15:22:20 Player: winnking222 Result: Destroyed by D2-OK1(R) with Subdweller Machine Gun Performance ------------- Evolutions (0) 0 Regions Visited (3) 600 Robots Destroyed (38) 190 Value Destroyed (887) 887 Prototype IDs (14) 280 Alien Tech Used (0) 0 Bonus (0) 0 TOTAL SCORE: 1957 Bonus ------- None Cogmind --------- Core Integrity 0/250 Matter 144/300 Energy 200/200 System Corruption 0% Temperature Cool (0) Movement Treading (320) Ox2 Location -10/Subcaves Parts ------- > --- POWER (1) -------- Subdweller Power Source > --- PROPULSION (2) --- Light Treads > --- UTILITY (2) ------ High-capacity Storage Unit Seismic Detector > --- WEAPON (2) ------- Subdweller Machine Gun Missile Launcher > --- INVENTORY (20) --- Ion Engine Compact Wheel Subdweller Monowheel Subdweller Monowheel Flightbrick Small Storage Unit Huge Storage Unit Subdweller Optics Light Armor Plating Improved Trap Extractor (0/6) Subdweller Laser Heavy Assault Rifle Battle Rifle Subdweller Machine Gun Subdweller Machine Gun Subdweller Machine Gun Subdweller Shrapnel Launcher Peak State ------------ > --- POWER ------------ Subdweller Power Source > --- PROPULSION ------- Light Treads Armored Treads > --- UTILITY ---------- High-capacity Storage Unit Seismic Detector > --- WEAPON ----------- Subdweller Machine Gun Missile Launcher > --- INVENTORY -------- Ion Engine Compact Wheel Subdweller Monowheel Subdweller Monowheel Flightbrick Small Storage Unit Huge Storage Unit Subdweller Optics Light Armor Plating Improved Trap Extractor Subdweller Laser Heavy Assault Rifle Battle Rifle Subdweller Machine Gun Subdweller Machine Gun Subdweller Machine Gun Subdweller Shrapnel Launcher [Rating: 19] Favorites ----------- Power Ion Engine Engine Ion Engine Propulsion Light Treads Treads Light Treads Wheel Compact Wheel Utility High-capacity Storage Unit Device Seismic Detector Storage High-capacity Storage Unit Protection Reactive Plating Weapon Heavy Assault Rifle Energy Gun Medium Laser Ballistic Gun Heavy Assault Rifle Launcher Missile Launcher Build | -11 -10 -10 -10 ------- Run | Yrd Mat Min Sub Slots Evolved . | . . . . Power . | . . . . Propulsion . | . . . . Utility . | . . . . Weapon . | . . . . Parts Attached 37 | 7 6 6 18 Power 6 | 1 1 1 3 Engine 6 | 1 1 1 3 Core . | . . . . Reactor . | . . . . Propulsion 6 | 2 . 2 2 Treads 5 | 2 . 2 1 Leg . | . . . . Wheel 1 | . . . 1 Hover . | . . . . Flight . | . . . . Utility 9 | 2 3 1 3 Device 3 | 1 1 . 1 Storage 4 | 1 2 1 . Processor . | . . . . Hackware . | . . . . Protection 2 | . . . 2 Artifact . | . . . . Weapon 16 | 2 2 2 10 Energy Gun 5 | 1 . . 4 Energy Cannon . | . . . . Ballistic Gun 8 | 1 1 1 5 Ballistic Cannon . | . . . . Launcher 3 | . 1 1 1 Special Weapon . | . . . . Impact Weapon . | . . . . Slashing Weapon . | . . . . Piercing Weapon . | . . . . Special Melee Weapon . | . . . . Unidentified Prototypes . | . . . . Parts Lost 5 | . . 1 4 Power . | . . . . Propulsion 3 | . . 1 2 Utility 1 | . . . 1 Weapon 1 | . . . 1 Highest Loss Streak 3 | . . 1 3 To Critical Strikes . | . . . . Average Backups 17 | 5 9 19 19 Power 1 | . 1 2 1 Propulsion 3 | 3 4 3 3 Utility 6 | . 1 6 7 Weapon 6 | . 2 7 7 Tool/Special . | . . . . Unused Backups 16 | . . 4 12 Power 1 | . . 1 . Propulsion 7 | . . 2 5 Utility 3 | . . . 3 Weapon 5 | . . 1 4 Tool/Special . | . . . . Average Slot Usage (%) 99 | . 99 100 99 Engine 13 | . 13 14 14 Treads 27 | . 27 28 27 Device 11 | . 14 14 10 Storage 14 | . 14 14 14 Protection 2 | . . . 3 Energy Gun 7 | . 14 14 4 Ballistic Gun 17 | . 13 13 19 Launcher 2 | . . . 3 Peak Build Rating 19 | 7 8 14 19 Average Rating 14 | 5 7 12 15 On Entrance 7 | . 7 8 14 Avg Prop Armor Cover (%) . | . . . . Naked Turns . | . . . . Heaviest Build 90 | 15 90 53 64 Greatest Support 40 | 40 40 40 40 Greatest Overweight (x) 9 | . 9 1 1 Average Overweight (x) . | . . . 1 Largest Inventory Capacity 25 | 8 25 20 20 Average Capacity 18 | 7 12 19 20 Most Carried 20 | 7 13 20 20 Average Carried 18 | 5 9 19 19 Final Capacity 20 | 8 15 20 20 Final Carried 20 | 6 13 20 20 Class Distribution -------------------- 91% | Mutant 8% | Scavenger-Mutant Dominant Class ---------------- Mutant | -10/Materials Mutant | -10/Mines Mutant | -10/Subcaves Resources | -11 -10 -10 -10 ----------- Run | Yrd Mat Min Sub Matter Collected 1259 | 351 82 326 500 Remotely . | . . . . Salvage Created 1131 | 285 220 17 609 Parts 57 | 17 8 4 28 Haulers Intercepted . | . . . . Recyclers Shooed 2 | 2 . . . Parts Field Recycled . | . . . . Retrieved Matter . | . . . . Parts Self-Destructed 4 | . . . 4 Prevented . | . . . . Parts Restored . | . . . . Kills | -11 -10 -10 -10 ------- Run | Yrd Mat Min Sub Combat Hostiles Destroyed 25 | . 9 4 12 Guns 14 | . 3 1 10 AOE 11 | . 6 3 2 Classes Destroyed 7 | 3 3 . 1 Worker 2 | 2 . . . Tunneler 9 | 9 . . . Recycler 1 | 1 . . . Watcher 1 | . 1 . . Swarmer 7 | . 3 4 . Grunt 6 | . 6 . . Subdweller 12 | . . . 12 Best Kill Streak 5 | 4 5 3 2 Combat Bots Only 5 | . 5 3 2 Max Kills in Single Turn 2 | 1 2 1 2 Gunslinging . | . . . . Exploded 2 | . 2 1 2 Melee . | . . . . Uniques/NPCs Destroyed . | . . . . Combat | -11 -10 -10 -10 -------- Run | Yrd Mat Min Sub Hostile Shots Fired 112 | . 32 14 66 Missed 26 | . 13 3 10 Hits 86 | . 19 11 56 Projectile 86 | . 19 11 56 Damage Taken 1539 | . 242 122 1175 Core 265 | . 30 51 184 Absorbed by Shields . | . . . . Ignored by Resistances 129 | . . . 129 Core Remaining (%) 100 | 100 . . . Volleys Fired 153 | 27 30 8 88 Largest 2 | 2 2 2 2 Hottest 112 | 70 70 73 112 Shots Fired 264 | 54 45 12 153 Gun 237 | 54 34 8 141 Cannon . | . . . . Launcher 27 | . 11 4 12 Special . | . . . . Kinetic 131 | 27 16 4 84 Thermal 106 | 27 18 4 57 Explosive 27 | . 11 4 12 Electromagnetic . | . . . . Robot Hit Streak 58 | 5 12 2 58 Robot Miss Streak 3 | 3 3 3 2 Penetration Max . | . . . . Secondary Targets 1 | . . . 1 Max Gunslinging Chain 1 | . . . 1 Shots Hit Robots 139 | 26 26 4 83 Core Hits 67 | 13 23 3 28 Critical Kills . | . . . . Critical Parts Destroyed . | . . . . Critical Strikes 7 | 1 1 . 5 Burn 7 | 1 1 . 5 Melee Attacks . | . . . . Impact . | . . . . Slashing . | . . . . Piercing . | . . . . Sneak Attacks . | . . . . Combat Hostiles . | . . . . Follow-up Attacks . | . . . . Damage Inflicted 3279 | 328 898 345 1708 Guns 1975 | 328 284 42 1321 Cannons . | . . . . Explosions 1297 | . 607 303 387 Melee . | . . . . Ramming 7 | . 7 . . Kinetic 965 | 139 119 17 690 Thermal 1010 | 189 165 25 631 Explosive 1297 | . 607 303 387 Electromagnetic . | . . . . Impact . | . . . . Slashing . | . . . . Piercing . | . . . . Highest Corruption . | . . . . Average Corruption . | . . . . Corruption Purged . | . . . . Corruption Blocked . | . . . . Overload Shots . | . . . . Overflow Damage 66 | . 39 27 . Projectiles . | . . . . Explosions 66 | . 39 27 . Melee . | . . . . Knockbacks . | . . . . Impact . | . . . . Kinetic . | . . . . Secondary . | . . . . Self-Inflicted Damage 35 | . 35 . . Shots 2 | . 2 . . Rammed 2 | . 2 . . Targets Rammed 2 | . 2 . . Kicked . | . . . . Crushed . | . . . . Highest Temperature 105 | 90 105 60 48 Average Temperature 28 | 32 32 30 17 Received Heat Transfer 249 | . 105 . 144 Siege Activations . | . . . . Martial Activations . | . . . . Shielding Activations . | . . . . Robots Disrupted . | . . . . Combat Hostiles . | . . . . Robots Corrupted . | . . . . Combat Hostiles . | . . . . Parts Fried . | . . . . Impact Corruptions . | . . . . Robots Melted . | . . . . Combat Hostiles . | . . . . Parts Melted 10 | 3 1 2 4 Heat Transferred 3145 | 629 555 74 1887 Parts Sabotaged . | . . . . Parts Stolen . | . . . . Parts Stripped . | . . . . Power Chain Reactions . | . . . . Alert | -11 -10 -10 -10 ------- Run | Yrd Mat Min Sub Maximum Alert Level . | . . . . Low Security (%) 100 | 100 100 100 . Level 1 . | . . . . Level 2 . | . . . . Level 3 . | . . . . Level 4 . | . . . . Level 5 . | . . . . High Security . | . . . . Max Security . | . . . . Peak Influence 151 | 15 151 115 . Initial 7 | . . 7 . Average 25 | 3 40 18 . Influence Increases 489 | 60 288 141 . Destroy 0b10 Robot/C 260 | . 180 80 . Destroy 0b10 Robot/NC 65 | 60 5 . . Destroy Leader 62 | . 42 20 . Successful Hack 5 | . 5 . . Disable Machine 30 | . 30 . . Destroy Structure 52 | . 26 26 . Lose Combat Pursuer 15 | . . 15 . Influence Decreases 489 | 60 267 87 75 Entered New Map 53 | . . 14 39 Time Decay 436 | 60 267 73 36 Squads Dispatched 2 | . 2 . . Investigation . | . . . . Extermination . | . . . . Reinforcement 2 | . 2 . . Assault . | . . . . Garrison . | . . . . Intercept . | . . . . Searches Triggered . | . . . . Construction Impeded . | . . . . Haulers Reinforced . | . . . . Active Scanning Responses . | . . . . Cargo Convoy Interrupts . | . . . . Stealth | -11 -10 -10 -10 --------- Run | Yrd Mat Min Sub Distress Signals 3 | . 3 . . Communications Jammed . | . . . . Distress Signals . | . . . . Times Spotted 38 | . 18 5 15 Peak Tracking Total 6 | . 6 3 2 Tactical Retreats 1 | . . 1 . Traps | -11 -10 -10 -10 ------- Run | Yrd Mat Min Sub Traps Triggered 4 | . 2 1 1 Indirectly . | . . . . Trap Hack Attempts . | . . . . Triggered . | . . . . Disarmed . | . . . . Reprogrammed . | . . . . Reused . | . . . . Traps Extracted . | . . . . Installed . | . . . . Triggered . | . . . . Machines | -11 -10 -10 -10 ---------- Run | Yrd Mat Min Sub Machines Disabled 3 | . 2 . 1 Max in Single Turn 1 | . 1 . 1 Machines Repaired . | . . . . Machines Dismantled . | . . . . Machines Sabotaged . | . . . . Overloaded Fab Kills . | . . . . Hacking | -11 -10 -10 -10 --------- Run | Yrd Mat Min Sub Machines Accessed 5 | . 2 1 2 Terminals 2 | . 2 . . Fabricators . | . . . . Repair Stations . | . . . . Recycling Units . | . . . . Scanalyzers . | . . . . Garrison Access . | . . . . Total Hacks 21 | . 7 1 13 Successful 17 | . 3 1 13 Failed 4 | . 4 . . Catastrophic . | . . . . Database Lockouts . | . . . . Manual 7 | . 7 . . Terminals 7 | . 7 . . Fabricators . | . . . . Repair Stations . | . . . . Recycling Units . | . . . . Scanalyzers . | . . . . Garrison Access . | . . . . Terminal Hacks 14 | . . 1 13 Record 12 | . . . 12 Open Door 1 | . . 1 . Proto ID Catalog 1 | . . . 1 Fabricator Hacks . | . . . . Repair Station Hacks . | . . . . Recycling Unit Hacks . | . . . . Scanalyzer . | . . . . Garrison Access Hacks . | . . . . Unauthorized Hacks 3 | . 3 . . Terminals 3 | . 3 . . Botnet 1 | . 1 . . Operators 1 | . 1 . . Skim 1 | . 1 . . Fabricators . | . . . . Repair Stations . | . . . . Recycling Units . | . . . . Scanalyzers . | . . . . Garrison Access . | . . . . Data Cores Recovered . | . . . . Used . | . . . . Hacking Detections 2 | . 2 . . Full Trace Events 1 | . 1 . . Feedback Events . | . . . . Feedback Blocked . | . . . . Robot Schematics Acquired . | . . . . Robots Built . | . . . . Authchips . | . . . . Time . | . . . . Total Robot Build Rating . | . . . . Part Schematics Acquired . | . . . . Parts Built . | . . . . Authchips . | . . . . Time . | . . . . Total Part Build Rating . | . . . . Part Studies Acquired . | . . . . Parts Repaired . | . . . . Time . | . . . . Parts Recycled . | . . . . Recycled Matter . | . . . . Retrieved Matter . | . . . . Retrieved Components . | . . . . Parts Scanalyzed . | . . . . Part Schematics Acquired . | . . . . Parts Damaged . | . . . . Bothacking | -11 -10 -10 -10 ------------ Run | Yrd Mat Min Sub Used RIF Installer . | . . . . Robots Hacked . | . . . . Non-combat . | . . . . Combat . | . . . . Robot Hacks Applied . | . . . . Relay Couplers Released . | . . . . Fabnet Peak Effective % . | . . . . Robots Rewired . | . . . . Allies Hacked . | . . . . Hacks Repelled . | . . . . Allies | -11 -10 -10 -10 -------- Run | Yrd Mat Min Sub Total Allies . | . . . . Largest Group . | . . . . Highest-Rated Group . | . . . . Highest-Rated Ally . | . . . . Total Orders . | . . . . Ally Attacks . | . . . . Total Damage . | . . . . Kills . | . . . . Allies Corrupted . | . . . . Allies Melted . | . . . . Intel | -11 -10 -10 -10 ------- Run | Yrd Mat Min Sub Active Infowar (turns) 6381 | 14 922 1433 4012 Seismic 6381 | 14 922 1433 4012 Robot Analysis Total . | . . . . Derelict Logs Recovered . | . . . . Drone Launches . | . . . . Drone Recoveries . | . . . . Exploration | -11 -10 -10 -10 ------------- Run | Yrd Mat Min Sub Turns Passed 8113 | 247 922 1433 5511 Spaces Moved 3097 | 94 461 566 1976 Core 8 | 7 1 . . Treads 3089 | 87 460 566 1976 Legs . | . . . . Wheels . | . . . . Hover . | . . . . Flight . | . . . . Fastest Speed 50 | 50 160 160 245 Average Speed 229 | 151 164 243 245 Slowest Speed 500 | 160 500 245 245 Overloaded Moves . | . . . . Propulsion Burnouts . | . . . . Robots Hopped . | . . . . Potential Cave-ins . | . . . . Cave-ins Triggered . | . . . . Exploration Rate (%) 63 | 6 77 92 77 Regions Visited 3 Branch Regions 2 Pre-discovered Areas . | . . . . Known Exits Taken . | . . . . Unknown Exits Taken 3 | 1 1 1 . Scrap Searched 3 | . . 3 . Spaces Dug . | . . . . Terrain Destroyed 171 | . 33 34 104 Melee . | . . . . Projectile . | . . . . AOE 171 | . 33 34 104 Terrain Rammed . | . . . . Walls Destroyed . | . . . . Machines Disabled . | . . . . Actions | -11 -10 -10 -10 --------- Run | Yrd Mat Min Sub Total 3817 | 144 574 613 2486 Wait 428 | 4 53 14 357 Move 3094 | 93 460 565 1976 Hop . | . . . . Pick Up 54 | 13 11 13 17 Fast Attach 3 | . 3 . . Attach 16 | 7 2 1 6 Detach . | . . . . Swap 40 | . 10 5 25 Drop 27 | . 3 7 17 Fire 153 | 27 30 8 88 Melee . | . . . . Ram . | . . . . Kick . | . . . . Crush 2 | . 2 . . Escape Stasis . | . . . . Rewire . | . . . . Trap . | . . . . Miscellaneous . | . . . . Route ------- -11/Scrapyard -10/Materials (discovered 4 exits: [*Mat x3] / *Min) -10/Mines (discovered 3 exits: [*Mat x2] / *Sub) -10/Subcaves (discovered 2 exits: [*Mat x2]) History --------- Turn | Location | Event 7 | -11/Scrapyard | Discovered new exit (range 16) 248 | -11/Scrapyard | Entered Materials 312 | -10/Materials | Build established: Mutant 404 | -10/Materials | Discovered new exit (range 14) 603 | -10/Materials | Discovered new exit (range 16) 657 | -10/Materials | Discovered new exit (range 14) 809 | -10/Materials | Discovered new exit (range 16) 1170 | -10/Materials | Entered Mines 1172 | -10/Mines | Joined a pair of Derelicts in attacking an 0b10 outpost 1286 | -10/Mines | Met a Derelict who couldn't figure out how to use a Trap Extractor 1545 | -10/Mines | Discovered new exit (range 11) 1940 | -10/Mines | Received a Rocket Launcher from a helpful Derelict 1946 | -10/Mines | Discovered new exit (range 8) 2586 | -10/Mines | Discovered new exit (range 6) 2603 | -10/Mines | Entered Subcaves 2622 | -10/Subcaves | Shifting Twisted Machinery released Riot Gun 2682 | -10/Subcaves | Shifting Twisted Machinery released Lgt. Humpback 3233 | -10/Subcaves | Build established: Scavenger-Mutant 3888 | -10/Subcaves | Discovered new exit (range 10) 3956 | -10/Subcaves | Build established: Mutant 4071 | -10/Subcaves | Discovered new exit (range 5) 4095 | -10/Subcaves | Visited Clippyterm 4103 | -10/Subcaves | Learned Factory garrison access intel 4268 | -10/Subcaves | Core integrity fell below 50% 4391 | -10/Subcaves | A swath of the cavern ceiling suddenly collapsed 4731 | -10/Subcaves | A swath of the cavern ceiling suddenly collapsed 4760 | -10/Subcaves | Shifting Twisted Machinery released Battle Rifle 4779 | -10/Subcaves | Core integrity fell below 20% 4793 | -10/Subcaves | Shifting Twisted Machinery released Sub. Optics 5621 | -10/Subcaves | Lost 3 parts (1n1u1w) 7117 | -10/Subcaves | Visited 4L-MR0's lab 7144 | -10/Subcaves | Found Flightbrick 8108 | -10/Subcaves | Ambushed by Subdweller buried in earth 8112 | -10/Subcaves | Ambushed by Subdweller buried in earth 8114 | -10/Subcaves | Destroyed by D2-OK1(R) with Subdweller Machine Gun Last Messages --------------- 07141_ Dropped Disposable Heat Sink. 07143_ Subatomizers dissect the Disposable Heat Sink. 07143_ Dropped Hvy. Assault Rifle. 07143_ Dropped Rocket Launcher. 07144_ Dropped Lrg. Storage Unit. 07144_ Acquired Flightbrick. 07148_ 4L-MR0 mumbles: "I'm surprised some of them are even willing to come in here given their fear of my usual visitors." 07157_ Subatomizers dissect the Disposable Heat Sink. 07159_ 4L-MR0 mumbles: "Who knows where that last prototype ended up, probably tossed aside somewhere as if it were useless junk..." 08097_ The unstable cave ceiling collapses. 08109_ D2-OK1(R): "ARGHSUB!" 08111_ 8V-9YU(R): "NOSTUCKSUB!" 08112_ Arm. Treads destroyed. 08113_ I1-IK4(R): "NAT20!" Map ----- +----------------------------------------------------+ | ??????????????????????????????????????? #????????? | | ????????????????????????????????###?### #????????? | | ???????????????????????????????## #? "?????????? | | ???????????????????????????????# ### ##?????????? | | ???????????????????????????????# * " "####??????? | | ???????????????????????????????## #??????? | | ???????????????????????????????# #??????? | | #####??##########?########## ## # ##?????? | | # # # ### # # ## ## #?????? | | ## #?????? | | # # ### ## ## ##### ##?????? | | ########?###########???# ###???# | | ???????????????????????#### ##? | | ???????????????????????????# ## | | ###### ????????????????????????????# | | ??????? ????????????????????????????# ### ## | | ??????? ???????????????????????????# ##?# ##? | | ?????? ??????????????????????###??# ##??## #### | | ?????#"????????????????#####??# ##?# ????## | | ?????#?????????????????# ##?# #?## ????# | | ????????????????????????# ### ##?######## | | ????????????????????????# ##??## # | | ????????????# ??#####?## #### ## | | ????????????# R ### #### | | ????????????# R # ## | | ????????????# @## #?# | | ????????????# R ##### #??# | | ????????????# #???# ] ##??# | | ????????????# ?# #???# ### #???? | | ????????????#### ???# ##???########?#########???? | | ???????????????#?????###?????????????????????????? | | ?????????????????????????????????????????????????? | | ?????????????????????????????????????????????????? | | ?????????????????????????????????????????????????? | | ?????????????????????????????????????????????????? | | ?????????????????????????????????????????????????? | | ?????????????????????????????????????????????????? | | ?????????????????????????????????????????????????? | | ?????????????????????????????????????????????????? | | ?????????????????????????????????????????????????? | | ?????????????????????????????????????????????????? | | ?????????????????????????????????????????????????? | | ?????????????????????????????????????????????????? | | ?????????????????????????????????????????????????? | | ?????????????????????????????????????????????????? | | | | | | | | | | | +----------------------------------------------------+ Best States ------------- Heat Dissipation 25 Energy Generation 15 Energy Capacity 265 Matter Stores 300 Matter Capacity 300 Sight Range 16 Terrain Scan Density 10 Armor Coverage 150 Resistance: KI 20 Evasion (%) 40 Recoil Reduction 2 Item Schematics ----------------- None Robot Schematics ------------------ None Fabricated ------------ Nothing Repaired ---------- Nothing Studied --------- None Alien Tech Used ----------------- None Achievements -------------- None Challenges ------------ None Game ------ Seed ModifiedSupersonicStick Manual? 0 Play Time 00:24:10 Cumulative 215.8 hours Start 2026.07.22 @ 14:58:39 End 2026.07.22 @ 15:22:20 Sessions 1 Manual Loads 0 Difficulty Rogue Special Mode None Game No. 299 Rogue 299 Adventurer 0 Explorer 0 Win Type - Total 3 Types 2/0/0/1/0/0/0/0/0/0 Lore% 74 Gallery% 69 Achievement% 57 Wizard Run 0 Options --------- Layout 1 ASCII 0 Keyboard 0 Movement Mouse Keybinds 0 Fullscreen 1 Font 24/Smallcaps Map View 50x35 Zoom Use 0% Tactical HUD 1 Map Filters NONE Filters NONE Steam 1 RUN: 0744c742-dc56-4096-b3db-678c7e72325b